fUSD/lending_fUSD_20241207
["ID","MTS","AMOUNT","RATE_DAILY","PERIOD"]
[344584561,1733577036268,-500.0,0.00015068,2]
[344584562,1733577036277,-500.1940805,0.00015068,2]
[344584563,1733577036287,-500.0,0.00015068,2]
[344584564,1733577036304,-265.23447182,0.00015068,2]
[344584565,1733577036313,-500.0,0.00015068,2]
[344584566,1733577036323,-500.0,0.00015068,2]
[344584567,1733577036332,-500.0,0.00015068,2]
[344584568,1733577036343,-500.0,0.00015068,2]
[344584569,1733577036353,-500.0,0.00015068,2]
[344584570,1733577036362,-500.0,0.00015068,2]
[344584571,1733577036371,-674.04,0.00015068,2]
[344584572,1733577036380,-500.0,0.00015068,2]
[344584573,1733577036389,-500.0,0.00015068,2]
[344584574,1733577036398,-500.0,0.00015068,2]
[344584575,1733577036407,-500.0,0.00015068,2]
[344584576,1733577036417,-500.0,0.00015068,2]
[344584577,1733577036426,-500.0,0.00015068,2]
[344584578,1733577036436,-500.0,0.00015068,2]
[344584579,1733577036446,-500.0,0.00015068,2]
[344584580,1733577036456,-150.0,0.00015068,2]
[344584581,1733577036466,-500.0,0.00015068,2]
[344584582,1733577036475,-330.14724417,0.00015068,2]
[344584583,1733577036486,-601.866265,0.00015068,2]
[344584584,1733577036495,-500.0,0.00015068,2]
[344584585,1733577036504,-502.31205692,0.00015068,2]
[344584586,1733577036513,-500.0,0.00015068,2]
[344584587,1733577036523,-500.0,0.00015068,2]
[344584588,1733577036532,-500.0,0.00015068,2]
[344584589,1733577036541,-500.0,0.00015068,2]
[344584590,1733577036551,-500.0,0.00015068,2]
[344584591,1733577036560,-500.0,0.00015068,2]
[344584592,1733577036570,-500.0,0.00015068,2]
[344584593,1733577036579,-500.0,0.00015068,2]
[344584594,1733577036589,-296.14711883,0.00015068,2]
[344584595,1733577036599,-500.0,0.00015068,2]
[344584596,1733577036608,-500.0,0.00015068,2]
[344584597,1733577036618,-500.0,0.00015068,2]
[344584598,1733577036627,-500.0,0.00015068,2]
[344584599,1733577036637,-500.0,0.00015068,2]
[344584600,1733577036646,-500.0,0.00015068,2]
[344584601,1733577036655,-500.0,0.00015068,2]
[344584602,1733577036663,-500.0,0.00015068,2]
[344584603,1733577036673,-500.0,0.00015068,2]
[344584604,1733577036682,-500.0,0.00015068,2]
[344584605,1733577036691,-368.11713507,0.00015068,2]
[344584606,1733577036700,-500.0,0.00015068,2]
[344584607,1733577036710,-500.0,0.00015068,2]
[344584608,1733577036719,-500.0,0.00015068,2]
[344584609,1733577036728,-500.0,0.00015068,2]
[344584610,1733577036742,-500.0,0.00015068,2]
[344584611,1733577036754,-500.0,0.00015068,2]
[344584612,1733577036763,-500.0,0.00015068,2]
[344584613,1733577036772,-500.0,0.00015068,2]
[344584614,1733577036781,-500.0,0.00015068,2]
[344584615,1733577036949,-500.0,0.00015068,2]
[344584616,1733577036959,-500.0,0.00015068,2]
[344584617,1733577036968,-500.0,0.00015068,2]
[344584618,1733577036981,-500.0,0.00015068,2]
[344584619,1733577036991,-500.0,0.00015068,2]
[344584620,1733577037001,-500.0,0.00015068,2]
[344584621,1733577037011,-500.0,0.00015068,2]
[344584622,1733577037020,-519.26388558,0.00015068,2]
[344584623,1733577037030,-500.0,0.00015068,2]
[344584624,1733577037039,-500.0,0.00015068,2]
[344584625,1733577037048,-247.59,0.00015068,2]
[344584626,1733577037058,-500.0,0.00015068,2]
[344584627,1733577037067,-500.0,0.00015068,2]
[344584628,1733577037076,-3000.0,0.00015068,2]
[344584629,1733577037085,-500.0,0.00015071,2]
[344584630,1733577037095,-500.0,0.00015071,2]
[344584631,1733577037104,-500.0,0.00015071,2]
[344584632,1733577037114,-500.0,0.00015072,2]
[344584633,1733577037123,-500.0,0.00015073,2]
[344584634,1733577037132,-150.0,0.00015096,2]
[344584635,1733577037141,-150.0,0.00015096,2]
[344584636,1733577037151,-150.0,0.00015096,2]
[344584637,1733577037160,-216.842,0.00015097,2]
[344584638,1733577037170,-150.0,0.00015097,2]
[344584639,1733577037180,-2003.0,0.00015097,2]
[344584640,1733577037189,-631.0,0.00015097,2]
[344584641,1733577037198,-3689.336,0.00015097,2]
[344584642,1733577037207,-1166.0,0.00015097,2]
[344584643,1733577037216,-1098.0,0.00015097,2]
[344584644,1733577037225,-500.0,0.00015117,2]
[344584645,1733577037238,-500.0,0.00015117,2]
[344584646,1733577037247,-500.0,0.00015117,2]
[344584647,1733577037257,-982.97,0.00015117,2]
[344584648,1733577037266,-500.0,0.00015117,2]
[344584649,1733577037275,-500.0,0.00015117,2]
[344584650,1733577037285,-500.0,0.00015117,2]
[344584651,1733577037298,-500.0,0.00015117,2]
[344584652,1733577037308,-500.0,0.00015117,2]
[344584653,1733577037317,-500.0,0.00015117,2]
[344584654,1733577037326,-500.0,0.00015117,2]
[344584655,1733577037337,-500.0,0.00015117,2]
[344584656,1733577037346,-547.60092464,0.00015117,2]
[344584657,1733577037355,-500.0,0.00015117,2]
[344584658,1733577037365,-574.1,0.00015117,2]
[344584659,1733577037374,-701.52,0.00015117,2]
[344584660,1733577037384,-500.0,0.00015117,2]
[344584661,1733577037393,-500.0,0.00015117,2]
[344584662,1733577037403,-500.0,0.00015117,2]
[344584663,1733577037413,-1034.8,0.00015117,2]
[344584664,1733577037422,-500.0,0.00015117,2]
[344584665,1733577037431,-566.2,0.00015117,2]
[344584666,1733577037442,-500.0,0.00015117,2]
[344584667,1733577037451,-703.43,0.00015117,2]
[344584668,1733577037460,-500.0,0.00015117,2]
[344584669,1733577037470,-500.0,0.00015117,2]
[344584670,1733577037481,-500.0,0.00015117,2]
[344584671,1733577037490,-500.0,0.00015117,2]
[344584672,1733577037500,-500.0,0.00015117,2]
[344584673,1733577037509,-391.44055003,0.00015117,2]
[344584674,1733577037518,-500.0,0.00015117,2]
[344584675,1733577037527,-500.0,0.00015117,2]
[344584676,1733577037536,-7500.0,0.00015117,2]
[344584677,1733577037545,-492.01611277,0.00015117,2]
[344584678,1733577037555,-500.0,0.00015117,2]
[344584679,1733577037564,-500.0,0.00015117,2]
[344584680,1733577037573,-500.0,0.00015117,2]
[344584682,1733577037581,-500.0,0.00015118,2]
[344584683,1733577037590,-500.0,0.00015118,2]
[344584684,1733577037600,-286.81912841,0.00015118,2]
[344584685,1733577037608,-500.0,0.00015118,2]
[344584686,1733577037618,-500.0,0.00015118,2]
[344584687,1733577037627,-500.0,0.00015118,2]
[344584689,1733577037636,-500.0,0.00015118,2]
[344584691,1733577037645,-500.0,0.00015118,2]
[344584692,1733577037654,-500.0,0.00015118,2]
[344584693,1733577037663,-535.84312293,0.00015118,2]
[344584694,1733577037672,-500.0,0.00015118,2]
[344584695,1733577037681,-618.21003311,0.00015118,2]
[344584696,1733577037690,-500.0,0.00015118,2]
[344584697,1733577037699,-500.0,0.00015118,2]
[344584698,1733577037708,-500.0,0.00015118,2]
[344584699,1733577037717,-500.0,0.00015118,2]
[344584700,1733577037727,-407.80769102,0.00015118,2]
[344584701,1733577037738,-500.0,0.00015118,2]
[344584702,1733577037747,-500.0,0.00015118,2]
[344584703,1733577037756,-499.00358025,0.00015118,2]
[344584704,1733577037765,-500.0,0.00015118,2]
[344584705,1733577037774,-500.0,0.00015118,2]
[344584706,1733577037783,-500.0,0.00015118,2]
[344584707,1733577037793,-500.0,0.00015118,2]
[344584708,1733577037802,-500.0,0.00015118,2]
[344584709,1733577037811,-500.0,0.00015118,2]
[344584710,1733577037820,-500.0,0.00015118,2]
[344584711,1733577037829,-500.0,0.00015118,2]
[344584712,1733577037838,-500.0,0.00015118,2]
[344584713,1733577037848,-500.0,0.00015118,2]
[344584714,1733577037858,-500.0,0.00015118,2]
[344584715,1733577037868,-500.0,0.00015118,2]
[344584716,1733577037877,-500.0,0.00015118,2]
[344584717,1733577037886,-500.0,0.00015118,2]
[344584718,1733577037895,-500.08583974,0.00015118,2]
[344584719,1733577037904,-500.0,0.00015118,2]
[344584720,1733577037913,-500.16098963,0.00015118,2]
[344584721,1733577037922,-500.0,0.00015118,2]
[344584722,1733577037931,-500.0,0.00015118,2]
[344584723,1733577037941,-555.47712328,0.00015118,2]
[344584724,1733577037950,-500.0,0.00015118,2]
[344584725,1733577037959,-500.15941185,0.00015118,2]
[344584726,1733577037968,-501.12783114,0.00015118,2]
[344584727,1733577037977,-500.0,0.00015118,2]
[344584728,1733577037988,-500.0,0.00015118,2]
[344584729,1733577037997,-500.0,0.00015118,2]
[344584730,1733577038007,-500.07843005,0.00015118,2]
[344584731,1733577038016,-500.0,0.00015118,2]
[344584732,1733577038025,-500.0,0.00015118,2]
[344584733,1733577038035,-500.0,0.00015118,2]
[344584734,1733577038044,-500.0,0.00015118,2]
[344584735,1733577038053,-500.0,0.00015118,2]
[344584736,1733577038063,-500.0,0.00015118,2]
[344584737,1733577038072,-500.0,0.00015118,2]
[344584738,1733577038081,-500.0,0.00015118,2]
[344584739,1733577038091,-500.0,0.00015118,2]
[344584740,1733577038100,-500.87540228,0.00015118,2]
[344584741,1733577038109,-500.0,0.00015118,2]
[344584742,1733577038119,-500.0,0.00015118,2]
[344584743,1733577038128,-500.14488692,0.00015118,2]
[344584744,1733577038137,-648.41129157,0.00015118,2]
[344584745,1733577038146,-500.0,0.00015118,2]
[344584746,1733577038156,-500.0,0.00015118,2]
[344584747,1733577038165,-500.0,0.00015118,2]
[344584748,1733577038174,-500.0,0.00015118,2]
[344584749,1733577038183,-500.0,0.00015118,2]
[344584751,1733577038192,-501.49491537,0.00015118,2]
[344584753,1733577038201,-500.0,0.00015118,2]
[344584755,1733577038211,-500.0,0.00015118,2]
[344584756,1733577038220,-500.0,0.00015118,2]
[344584757,1733577038231,-500.0,0.00015118,2]
[344584758,1733577038240,-500.0,0.00015118,2]
[344584759,1733577038249,-500.0,0.00015118,2]
[344584760,1733577038258,-500.0,0.00015118,2]
[344584761,1733577038267,-500.0,0.00015118,2]
[344584762,1733577038277,-500.0,0.00015118,2]
[344584763,1733577038286,-162.09439755,0.00015118,2]
[344584764,1733577038299,-161.51206813,0.00015118,2]
[344584765,1733577038308,-500.0,0.00015118,2]
[344584766,1733577038317,-500.0,0.00015118,2]
[344584767,1733577038327,-500.0,0.00015118,2]
[344584768,1733577038337,-499.06558093,0.00015118,2]
[344584769,1733577038346,-500.0,0.00015118,2]
[344584770,1733577038355,-498.94034384,0.00015118,2]
[344584771,1733577038365,-500.0,0.00015118,2]
[344584772,1733577038375,-500.0,0.00015118,2]
[344584773,1733577038385,-500.0,0.00015118,2]
[344584774,1733577038394,-500.0,0.00015118,2]
[344584775,1733577038403,-500.0,0.00015118,2]
[344584776,1733577038413,-500.0,0.00015118,2]
[344584777,1733577038423,-500.0,0.00015118,2]
[344584778,1733577038437,-375.23990289,0.00015118,2]
[344584779,1733577038453,-500.0,0.00015118,2]
[344584780,1733577038467,-500.0,0.00015118,2]
[344584781,1733577038480,-500.0,0.00015118,2]
[344584782,1733577038492,-308.61930675,0.00015118,2]
[344584783,1733577038505,-500.0,0.00015118,2]
[344584784,1733577038518,-500.0,0.00015118,2]
[344584785,1733577038530,-502.86746561,0.00015118,2]
[344584786,1733577038541,-500.0,0.00015118,2]
[344584787,1733577038554,-500.0,0.00015118,2]
[344584788,1733577038566,-500.0,0.00015118,2]
[344584789,1733577038579,-501.3966953,0.00015118,2]
[344584790,1733577038591,-500.0,0.00015118,2]
[344584791,1733577038602,-500.0,0.00015118,2]
[344584792,1733577038613,-500.0,0.00015118,2]
[344584793,1733577038624,-500.0,0.00015118,2]
[344584794,1733577038635,-500.0,0.00015118,2]
[344584795,1733577038648,-530.71423436,0.00015118,2]
[344584796,1733577038660,-500.0,0.00015118,2]
[344584797,1733577038672,-500.0,0.00015118,2]
[344584798,1733577038690,-500.0,0.00015118,2]
[344584799,1733577038702,-500.0,0.00015118,2]
[344584800,1733577038713,-500.0,0.00015118,2]
[344584801,1733577038726,-500.0,0.00015118,2]
[344584802,1733577038740,-500.0,0.00015118,2]
[344584803,1733577038751,-500.0,0.00015118,2]
[344584804,1733577038762,-500.0,0.00015118,2]
[344584805,1733577038775,-500.0,0.00015118,2]
[344584806,1733577038787,-500.0,0.00015118,2]
[344584807,1733577038799,-501.26566068,0.00015118,2]
[344584808,1733577038811,-936.0,0.00015118,2]
[344584809,1733577038822,-636.59554861,0.00015118,2]
[344584810,1733577038834,-500.0,0.00015118,2]
[344584811,1733577038844,-501.23953254,0.00015118,2]
[344584812,1733577038856,-500.0,0.00015118,2]
[344584813,1733577038868,-500.0,0.00015118,2]
[344584814,1733577038881,-500.0,0.00015118,2]
[344584815,1733577038893,-500.0,0.00015118,2]
[344584816,1733577038904,-500.0,0.00015118,2]
[344584817,1733577038915,-503.41465829,0.00015118,2]
[344584818,1733577038925,-500.0,0.00015118,2]
[344584819,1733577038935,-500.0,0.00015118,2]
[344584820,1733577038945,-597.42354856,0.00015118,2]
[344584821,1733577038956,-203.18729199,0.00015118,2]
[344584822,1733577038970,-500.0,0.00015118,2]
[344584823,1733577038982,-500.0,0.00015118,2]
[344584824,1733577038992,-500.0,0.00015118,2]
[344584825,1733577039002,-500.0,0.00015118,2]
[344584826,1733577039012,-500.0,0.00015118,2]
[344584827,1733577039022,-500.0,0.00015118,2]
[344584828,1733577039033,-500.0,0.00015118,2]
[344584829,1733577039044,-500.0,0.00015118,2]
[344584830,1733577039057,-500.0,0.00015118,2]
[344584831,1733577039067,-500.0,0.00015118,2]
[344584832,1733577039078,-500.0,0.00015118,2]
[344584833,1733577039087,-500.0,0.00015118,2]
[344584834,1733577039098,-500.0,0.00015118,2]
[344584835,1733577039108,-620.1,0.00015118,2]
[344584836,1733577039118,-500.0,0.00015118,2]
[344584837,1733577039128,-573.22,0.00015118,2]
[344584838,1733577039139,-500.0,0.00015118,2]
[344584839,1733577039152,-500.0,0.00015118,2]
[344584840,1733577039163,-500.0,0.00015118,2]
[344584841,1733577039173,-500.0,0.00015118,2]
[344584842,1733577039184,-500.0,0.00015118,2]
[344584843,1733577039194,-500.0,0.00015118,2]
[344584844,1733577039204,-500.0,0.00015118,2]
[344584845,1733577039215,-500.0,0.00015118,2]
[344584846,1733577039226,-500.0,0.00015118,2]
[344584847,1733577039239,-500.0,0.00015118,2]
[344584848,1733577039250,-500.0,0.00015118,2]
[344584849,1733577039260,-1128.59,0.00015118,2]
[344584850,1733577039271,-500.0,0.00015118,2]
[344584851,1733577039281,-544.9,0.00015118,2]
[344584852,1733577039294,-500.0,0.00015118,2]
[344584853,1733577039306,-500.0,0.00015118,2]
[344584854,1733577039316,-500.0,0.00015118,2]
[344584855,1733577039327,-500.65393246,0.00015118,2]
[344584856,1733577039339,-500.0,0.00015118,2]
[344584857,1733577039351,-500.0,0.00015118,2]
[344584858,1733577039370,-500.0,0.00015118,2]
[344584859,1733577039389,-500.0,0.00015118,2]
[344584860,1733577039401,-500.0,0.00015118,2]
[344584861,1733577039412,-500.0,0.00015118,2]
[344584862,1733577039424,-939.55,0.00015118,2]
[344584863,1733577039435,-501.68259625,0.00015118,2]
[344584864,1733577039450,-502.60890565,0.00015118,2]
[344584865,1733577039463,-500.0,0.00015118,2]
[344584866,1733577039475,-500.0,0.00015118,2]
[344584867,1733577039489,-500.0,0.00015118,2]
[344584868,1733577039502,-500.0,0.00015118,2]
[344584869,1733577039514,-500.0,0.00015118,2]
[344584870,1733577039526,-500.0,0.00015118,2]
[344584871,1733577039538,-500.0,0.00015118,2]
[344584872,1733577039551,-500.0,0.00015118,2]
[344584873,1733577039562,-170.5,0.00015119,2]
[344584874,1733577039575,-500.0,0.00015119,2]
[344584875,1733577039586,-500.0,0.00015119,2]
[344584876,1733577039598,-505.60660759,0.00015119,2]
[344584877,1733577039609,-259.23,0.00015119,2]
[344584878,1733577039621,-195.33,0.00015119,2]
[344584879,1733577039633,-454.5837602,0.00015119,2]
[344584880,1733577039646,-500.0,0.00015119,2]
[344584881,1733577039657,-500.0,0.00015119,2]
[344584882,1733577039668,-500.38236007,0.00015119,2]
[344584883,1733577039681,-500.0,0.00015119,2]
[344584884,1733577039694,-500.0,0.00015119,2]
[344584885,1733577039704,-500.0,0.00015119,2]
[344584886,1733577039716,-567.18,0.00015119,2]
[344584887,1733577039727,-500.0,0.00015119,2]
[344584888,1733577039739,-500.0,0.00015119,2]
[344584889,1733577039751,-500.0,0.00015119,2]
[344584890,1733577039762,-500.0,0.00015119,2]
[344584891,1733577039773,-383.77055179,0.00015119,2]
[344584892,1733577039785,-500.0,0.00015119,2]
[344584893,1733577039795,-500.0,0.00015119,2]
[344584894,1733577039807,-500.0,0.00015119,2]
[344584895,1733577039819,-500.0,0.00015119,2]
[344584896,1733577039829,-500.0,0.00015119,2]
[344584897,1733577039841,-500.0,0.00015119,2]
[344584898,1733577039851,-500.0,0.00015119,2]
[344584899,1733577039862,-500.0,0.00015119,2]
[344584900,1733577039874,-500.0,0.00015119,2]
[344584901,1733577039884,-500.0,0.00015119,2]
[344584902,1733577039895,-500.0,0.00015119,2]
[344584903,1733577039906,-500.0,0.00015119,2]
[344584904,1733577039916,-500.0,0.00015119,2]
[344584905,1733577039928,-500.0,0.00015119,2]
[344584906,1733577039939,-500.0,0.00015119,2]
[344584907,1733577039950,-500.0,0.00015119,2]
[344584908,1733577039961,-500.0,0.00015119,2]
[344584909,1733577039972,-500.0,0.00015119,2]
[344584910,1733577039983,-500.37450157,0.00015119,2]
[344584911,1733577039994,-500.0,0.00015119,2]
[344584912,1733577040006,-500.0,0.00015119,2]
[344584913,1733577040017,-500.0,0.00015119,2]
[344584914,1733577040028,-500.0,0.00015119,2]
[344584915,1733577040039,-500.0,0.00015119,2]
[344584916,1733577040050,-500.0,0.00015119,2]
[344584917,1733577040061,-500.0,0.00015119,2]
[344584918,1733577040072,-500.0,0.00015119,2]
[344584919,1733577040084,-500.0,0.00015119,2]
[344584920,1733577040095,-500.0,0.00015119,2]
[344584921,1733577040107,-500.0,0.00015119,2]
[344584922,1733577040118,-152.69618198,0.00015119,2]
[344584923,1733577040130,-500.0,0.00015119,2]
[344584924,1733577040140,-500.0,0.00015119,2]
[344584925,1733577040152,-500.0,0.00015119,2]
[344584926,1733577040163,-500.0,0.00015119,2]
[344584927,1733577040176,-500.0,0.00015119,2]
[344584928,1733577040187,-500.0,0.00015119,2]
[344584929,1733577040198,-500.0,0.00015119,2]
[344584930,1733577040209,-500.0,0.00015119,2]
[344584932,1733577040221,-500.0,0.00015119,2]
[344584953,1733577040450,-500.0,0.00015119,2]
[344584954,1733577040460,-502.23017762,0.00015119,2]
[344584955,1733577040469,-500.0,0.00015119,2]
[344584956,1733577040479,-500.0,0.00015119,2]
[344584957,1733577040493,-500.0,0.00015119,2]
[344584958,1733577040504,-500.0,0.00015119,2]
[344584959,1733577040514,-500.0,0.00015119,2]
[344584960,1733577040523,-582.89171642,0.00015119,2]
[344584961,1733577040533,-500.0,0.00015119,2]
[344584962,1733577040543,-500.0,0.00015119,2]
[344584963,1733577040553,-500.0,0.00015119,2]
[344584964,1733577040562,-674.04,0.00015119,2]
[344584965,1733577040571,-500.0,0.00015119,2]
[344584966,1733577040580,-500.0,0.00015119,2]
[344584967,1733577040590,-500.0,0.00015119,2]
[344584968,1733577040599,-500.0,0.00015119,2]
[344584969,1733577040608,-500.0,0.00015119,2]
[344584970,1733577040617,-500.0,0.00015119,2]
[344584971,1733577040627,-501.95340938,0.00015119,2]
[344584972,1733577040636,-150.0,0.00015119,2]
[344584973,1733577040645,-500.0,0.00015119,2]
[344584974,1733577040655,-500.0,0.00015119,2]
[344584975,1733577040664,-500.0,0.00015119,2]
[344584976,1733577040673,-500.0,0.00015119,2]
[344584977,1733577040683,-500.4471654,0.00015119,2]
[344584978,1733577040692,-500.0,0.00015119,2]
[344584979,1733577040701,-500.0,0.00015119,2]
[344584980,1733577040711,-500.0,0.00015119,2]
[344584981,1733577040720,-500.0,0.00015119,2]
[344584982,1733577040730,-500.0,0.00015119,2]
[344584983,1733577040743,-609.94639722,0.00015119,2]
[344584984,1733577040752,-588.70608146,0.00015119,2]
[344584985,1733577040761,-500.0,0.00015119,2]
[344584986,1733577040771,-500.0,0.00015119,2]
[344584987,1733577040780,-500.0,0.00015119,2]
[344584988,1733577040790,-500.0,0.00015119,2]
[344584989,1733577040799,-500.0,0.00015119,2]
[344584990,1733577040808,-500.0,0.00015119,2]
[344584991,1733577040818,-500.0,0.00015119,2]
[344584992,1733577040827,-500.0,0.00015119,2]
[344584993,1733577040837,-500.0,0.00015119,2]
[344584994,1733577040846,-500.0,0.00015119,2]
[344584995,1733577040856,-500.0,0.00015119,2]
[344584996,1733577040865,-500.0,0.00015119,2]
[344584997,1733577040880,-500.0,0.00015119,2]
[344584998,1733577040896,-500.0,0.00015119,2]
[344584999,1733577040905,-500.0,0.00015119,2]
[344585000,1733577040915,-500.0,0.00015119,2]
[344585001,1733577040924,-500.0,0.00015119,2]
[344585002,1733577040933,-521.33007378,0.00015119,2]
[344585003,1733577040942,-500.0,0.00015119,2]
[344585004,1733577040951,-500.0,0.00015119,2]
[344585005,1733577040960,-500.0,0.00015119,2]
[344585006,1733577040969,-500.0,0.00015119,2]
[344585007,1733577040979,-500.0,0.00015119,2]
[344585008,1733577040992,-500.0,0.00015119,2]
[344585009,1733577041001,-500.0,0.00015119,2]
[344585010,1733577041011,-500.0,0.00015119,2]
[344585011,1733577041020,-38933.83,0.0001512,2]
[344585012,1733577041029,-303.4387903,0.0001512,2]
[344585013,1733577041038,-392.4879755,0.0001512,2]
[344585014,1733577041047,-1041.7431608,0.0001512,2]
[344585015,1733577041056,-42.22194217,0.0001512,2]
[344585016,1733577041082,-500.0,0.00015118,2]
[344585017,1733577041092,-155.96837883,0.0001512,2]
[344585018,1733577041101,-344.12162117,0.00015123,2]
[344585019,1733577041112,-1988.84048,0.00015123,2]
[344585020,1733577041123,-473.89346681,0.00015123,2]
[344585021,1733577041249,-500.0,0.00015118,2]
[344585022,1733577041259,-9415.1,0.00015123,2]
[344585023,1733577041270,-1629.905,0.00015123,2]
[344585024,1733577041282,-8937.17234034,0.00015123,2]
[344585025,1733577041294,-2604.74571817,0.00015123,2]
[344585026,1733577041304,-293.8476876,0.00015123,2]
[344585027,1733577041313,-284.2565849,0.00015123,2]
[344585028,1733577041322,-274.6654822,0.00015123,2]
[344585029,1733577041332,-265.0743796,0.00015123,2]
[344585030,1733577041342,-380.0822034,0.00015123,2]
[344585031,1733577041351,-367.6764313,0.00015123,2]
[344585032,1733577041360,-355.2706593,0.00015123,2]
[344585033,1733577041371,-342.8648872,0.00015123,2]
[344585034,1733577041380,-1008.8157107,0.00015123,2]
[344585035,1733577041390,-975.8882607,0.00015123,2]
[344585036,1733577041399,-942.9608106,0.00015123,2]
[344585037,1733577041408,-910.0333605,0.00015123,2]
[344585038,1733577041418,-191.9259152,0.00015123,2]
[344585039,1733577041427,-185.6615094,0.00015123,2]
[344585040,1733577041436,-179.3971036,0.00015123,2]
[344585041,1733577041445,-173.1326978,0.00015123,2]
[344585042,1733577041454,-477.98922928,0.00015129,2]
[344585043,1733577041463,-500.0,0.00015129,2]
[344585044,1733577041472,-500.0,0.00015129,2]
[344585045,1733577041481,-982.97,0.00015129,2]
[344585046,1733577041493,-500.0,0.00015129,2]
[344585047,1733577041502,-500.0,0.00015129,2]
[344585048,1733577041511,-500.0,0.00015129,2]
[344585049,1733577041520,-500.0,0.00015129,2]
[344585050,1733577041529,-500.0,0.00015129,2]
[344585051,1733577041539,-527.85421167,0.00015129,2]
[344585052,1733577041548,-230.65,0.00015129,2]
[344585053,1733577041558,-500.0,0.00015129,2]
[344585054,1733577041568,-701.52,0.00015129,2]
[344585055,1733577041577,-500.0,0.00015129,2]
[344585056,1733577041586,-500.0,0.00015129,2]
[344585057,1733577041595,-277.53184061,0.00015129,2]
[344585058,1733577041606,-272.272,0.00015129,2]
[344585059,1733577041625,-484.99615939,0.00015129,2]
[344585060,1733577041634,-500.0,0.00015129,2]
[344585061,1733577041643,-566.2,0.00015129,2]
[344585062,1733577041652,-500.0,0.00015129,2]
[344585063,1733577041661,-703.43,0.00015129,2]
[344585064,1733577041670,-412.1905887,0.00015129,2]
[344585065,1733577041681,-87.8094113,0.00015129,2]
[344585066,1733577041690,-313.55058869,0.00015129,2]
[344585067,1733577041702,-186.44941131,0.00015129,2]
[344585068,1733577041710,-229.18078369,0.00015129,2]
[344585069,1733577041721,-270.81921631,0.00015129,2]
[344585070,1733577041731,-4.13078369,0.00015129,2]
[344585071,1733577041808,-495.86921631,0.00015129,2]
[344585072,1733577041817,-242.64078369,0.00015129,2]
[344585076,1733577042771,-257.35921631,0.00015129,2]
[344585077,1733577042782,-500.0,0.00015129,2]
[344585078,1733577042791,-500.0,0.00015129,2]
[344585079,1733577042800,-7500.0,0.00015129,2]
[344585080,1733577042809,-500.0,0.00015129,2]
[344585081,1733577042818,-500.0,0.00015129,2]
[344585082,1733577042829,-601.87469644,0.00015129,2]
[344585083,1733577042844,-800.0,0.00015129,2]
[344585084,1733577042853,-800.0,0.00015129,2]
[344585085,1733577042863,-800.0,0.00015129,2]
[344585086,1733577042872,-800.0,0.00015129,2]
[344585087,1733577042881,-800.0,0.00015129,2]
[344585088,1733577042890,-800.0,0.00015129,2]
[344585089,1733577042899,-382.91197629,0.0001513,2]
[344585090,1733577042908,-500.0,0.0001513,2]